bitfinex-derivatives/quotes_BTCF0:USTF0_20210108
["timestamp","ask_amount","ask_price","bid_price","bid_amount"]
[1610123963687,0.42675918,41450.0,41449.0,0.00030301]
[1610123963888,0.42675918,41450.0,41445.0,0.00030301]
[1610123964186,0.42675918,41450.0,41449.0,0.00030301]
[1610123964590,0.42675918,41450.0,41446.0,0.00030301]
[1610123964787,0.42675918,41450.0,41449.0,0.00030301]
[1610123964988,0.42675918,41450.0,41447.0,0.00030301]
[1610123965487,0.42675918,41450.0,41448.0,0.00030299]
[1610123965986,0.42675918,41450.0,41443.0,0.00030299]
[1610123966187,0.13632608,41445.0,41444.0,0.13632608]
[1610123966388,0.13632608,41445.0,41444.0,0.00030299]
[1610123966705,0.13632608,41445.0,41434.0,0.00030299]
[1610123966889,0.13632608,41445.0,41433.0,0.00030299]
[1610123967087,0.13632608,41445.0,41435.0,0.00030299]
[1610123967488,0.13632608,41445.0,41434.0,0.00030301]
[1610123967690,0.13632608,41445.0,41433.0,0.02982621]
[1610123967896,0.13632608,41445.0,41435.0,0.00030303]
[1610123968295,0.10486,41448.0,41434.0,0.00030301]
[1610123968494,0.10486,41448.0,41433.0,0.02982621]
[1610123968793,0.10486,41448.0,41435.0,0.00030301]
[1610123968996,0.10486,41448.0,41434.0,0.00030301]
[1610123969194,0.10486,41448.0,41436.0,0.00030301]
[1610123969595,0.10486,41448.0,41435.0,0.00030306]
[1610123969796,0.10486,41448.0,41437.0,0.00030306]
[1610123969999,0.10486,41448.0,41436.0,0.00030308]
[1610123970397,1.5,41447.0,41438.0,0.00030308]
[1610123970597,1.5,41447.0,41437.0,0.00030312]
[1610123970897,0.13632608,41438.0,41420.0,0.02953743]
[1610123971096,1.63632608,41438.0,41437.0,0.00030317]
[1610123971297,1.73596608,41438.0,41437.0,0.00030317]
[1610123971502,1.73596608,41438.0,41397.0,2.8689]
[1610123971503,1.73596608,41438.0,41420.0,0.00030317]
[1610123971697,1.73596608,41438.0,41437.0,0.0003032]
[1610123971897,1.73596608,41438.0,41421.0,0.00030323]
[1610123972098,1.49969677,41437.0,41398.0,0.02954197]
[1610123972398,0.23596608,41438.0,41422.0,0.00030324]
[1610123972898,0.09964,41438.0,41423.0,0.00030321]
[1610123973299,0.2943,41437.0,41400.0,0.02984502]
[1610123973498,0.2943,41437.0,41412.0,3.8419]
[1610123973699,0.09964,41438.0,41413.0,0.02984064]
[1610123975418,0.09964,41438.0,41432.0,0.13632608]
[1610123975603,0.42675918,41450.0,41433.0,0.547]
[1610123975813,0.42675918,41450.0,41434.0,0.02982725]
[1610123977304,0.13632608,41435.0,41434.0,0.02982725]
[1610123978021,0.42675918,41450.0,41434.0,0.02982725]
[1610123978215,0.42675918,41450.0,41438.0,3.33]
[1610123978805,0.42675918,41450.0,41439.0,0.02982314]
[1610123979606,0.42675918,41450.0,41439.0,0.08886326]
[1610123979807,0.42675918,41450.0,41449.0,0.13632608]
[1610123980012,0.42675918,41450.0,41449.0,0.23967608]
[1610123980409,0.42675918,41450.0,41449.0,0.67706861]
[1610123981909,0.42675918,41450.0,41449.0,0.81339469]
[1610123984012,0.42675918,41450.0,41449.0,0.67706861]
[1610123984412,0.56308526,41450.0,41449.0,0.81339469]
[1610123985014,0.42675918,41450.0,41449.0,0.81339469]
[1610123986314,0.42675918,41450.0,41449.0,0.67706861]
[1610123986714,0.42675918,41450.0,41449.0,0.13316861]
[1610123986917,0.56308526,41450.0,41449.0,0.10365107]
[1610123988917,0.42675918,41450.0,41449.0,0.10365107]
[1610123989318,0.56308526,41450.0,41449.0,0.10365107]
[1610123991323,0.42675918,41450.0,41449.0,0.10365107]
[1610123992024,0.56308526,41450.0,41449.0,0.10365107]
[1610123993828,0.42675918,41450.0,41449.0,0.10365107]
[1610123994328,0.56308526,41450.0,41449.0,0.10365107]
[1610123996433,0.42675918,41450.0,41449.0,0.10365107]
[1610123996932,0.56308526,41450.0,41449.0,0.10365107]
[1610123998234,2.06308526,41450.0,41449.0,0.10365107]
[1610123998938,1.92675918,41450.0,41449.0,0.10365107]
[1610123999633,0.56308526,41450.0,41449.0,0.10365107]
[1610124003238,0.56308526,41450.0,41449.0,0.13317539]
[1610124003440,0.56308526,41450.0,41449.0,0.10365107]
[1610124004740,0.26308526,41450.0,41449.0,0.10365107]
[1610124011549,1.76308526,41450.0,41449.0,0.10365107]
[1610124012448,0.26308526,41450.0,41449.0,0.10365107]
[1610124013049,1.76308526,41450.0,41449.0,0.10365107]
[1610124013350,0.26308526,41450.0,41449.0,0.10365107]
[1610124013953,0.12675918,41450.0,41449.0,0.10365107]
[1610124014153,0.12675918,41450.0,41449.0,0.13317543]
[1610124015566,0.12675918,41450.0,41449.0,0.26950151]
[1610124017256,0.12675918,41450.0,41449.0,3.65720151]
[1610124017656,0.3,41470.0,41449.0,3.71622639]
[1610124018260,0.3,41470.0,41450.0,0.0888171]
[1610124019456,0.3,41470.0,41469.0,0.13632608]
[1610124019657,0.2709,41477.0,41476.0,0.5273]
[1610124020055,0.2709,41477.0,41476.0,0.55709899]
[1610124020760,0.2709,41477.0,41476.0,0.65535087]
[1610124021560,0.2709,41477.0,41476.0,0.79167695]
[1610124022664,0.1,41500.0,41476.0,0.79167695]
[1610124023063,0.1,41500.0,41477.0,0.00030084]
[1610124023464,0.1,41500.0,41499.0,0.13632608]
[1610124023764,0.1,41500.0,41499.0,0.26294608]
[1610124023962,0.1,41500.0,41499.0,0.2632469]
[1610124024166,0.1,41500.0,41499.0,0.12692082]
[1610124024863,0.1,41500.0,41499.0,0.12662]
[1610124027868,0.1,41500.0,41489.0,0.09162]
[1610124028873,0.1,41500.0,41479.0,3.5112]
[1610124029074,1.5,41499.0,41479.0,3.5112]
[1610124029474,0.13632608,41480.0,41479.0,3.5112]
[1610124031578,0.13632608,41480.0,41479.0,3.51150096]
[1610124031779,0.13632608,41480.0,41479.0,3.5112]
[1610124034281,0.1,41500.0,41479.0,3.5112]
[1610124034483,0.1,41500.0,41479.0,3.63215]
[1610124034881,0.1,41500.0,41480.0,0.00030093]
[1610124035682,0.1,41500.0,41483.0,0.13632608]
[1610124036184,0.1,41500.0,41495.0,2.7598]
[1610124036384,0.1,41500.0,41495.0,2.83869]
[1610124036986,0.1,41500.0,41496.0,0.00030228]
[1610124037586,0.13632608,41497.0,41496.0,0.00030228]
[1610124037786,0.13632608,41497.0,41495.0,2.83869]
[1610124038501,0.13632608,41497.0,41496.0,0.00030227]
[1610124039086,0.13632608,41497.0,41495.0,0.07889]
[1610124040889,0.13632608,41497.0,41496.0,0.00030235]
[1610124044095,0.13632608,41497.0,41482.0,0.00030235]
[1610124044295,1.63632608,41497.0,41482.0,0.00030235]
[1610124044696,0.13632608,41497.0,41482.0,0.00030235]
[1610124045695,0.1,41500.0,41482.0,0.00030235]
[1610124045696,0.13632608,41483.0,41482.0,0.00030235]
[1610124048698,0.13632608,41483.0,41480.0,0.00030241]
[1610124048900,0.13632608,41483.0,41482.0,0.00030241]
[1610124049097,0.13632608,41483.0,41481.0,0.00030243]
[1610124049300,1.63632608,41483.0,41467.0,0.02981097]
[1610124049700,1.5,41483.0,41482.0,0.00030246]
[1610124049898,1.5,41483.0,41468.0,0.00030246]
[1610124050099,1.5,41483.0,41462.0,0.00030251]
[1610124050399,1.5,41482.0,41469.0,0.00030251]
[1610124050599,1.5,41482.0,41463.0,0.00030251]
[1610124051001,1.5,41482.0,41470.0,0.00030257]
[1610124051200,1.5,41482.0,41464.0,0.0003026]
[1610124051403,1.5,41481.0,41433.0,3.1166]
[1610124051605,0.13632608,41450.0,41433.0,3.1166]
[1610124052005,0.13632608,41450.0,41434.0,0.02982936]
[1610124053709,0.13632608,41435.0,41434.0,0.02982936]
[1610124054809,0.13632608,41435.0,41433.0,0.02983067]
[1610124055210,0.13632608,41435.0,41434.0,0.02983061]
[1610124055710,0.13632608,41435.0,41433.0,0.02983002]
[1610124055911,0.13632608,41435.0,41434.0,0.02982977]
[1610124056110,0.13632608,41435.0,41434.0,0.00030263]
[1610124056512,0.13632608,41435.0,41433.0,0.00030263]
[1610124056710,0.13632608,41435.0,41432.0,0.0944]
[1610124056911,0.13632608,41435.0,41434.0,0.00030265]
[1610124057313,0.13632608,41435.0,41433.0,0.00030265]
[1610124057513,0.13632608,41435.0,41434.0,0.00030265]
[1610124058113,0.13632608,41435.0,41433.0,0.00030265]
[1610124058413,0.13632608,41435.0,41432.0,0.0944]
[1610124058615,0.13632608,41435.0,41434.0,0.00030265]
[1610124058815,0.13632608,41435.0,41433.0,0.00030265]
[1610124059315,0.13632608,41435.0,41434.0,0.00030265]
[1610124059715,0.13632608,41435.0,41432.0,0.00030265]
[1610124060015,0.13632608,41435.0,41434.0,0.00030265]
[1610124060216,0.13632608,41435.0,41433.0,0.00030263]
[1610124060516,0.13632608,41435.0,41432.0,0.00030263]
[1610124060721,0.13632608,41435.0,41434.0,0.00030263]
[1610124060916,0.13632608,41435.0,41433.0,0.00030263]
[1610124061316,0.13632608,41435.0,41434.0,0.00030263]
[1610124061618,0.11812,41458.0,41434.0,0.00030263]
[1610124061917,0.2893,41479.0,41432.0,0.00030261]
[1610124062119,0.2893,41479.0,41446.0,3.1923]
[1610124062317,0.2893,41479.0,41446.0,3.32036]
[1610124062516,0.2893,41479.0,41447.0,0.00030255]
[1610124062717,1.5,41478.0,41447.0,0.00030255]
[1610124063817,0.13632608,41448.0,41447.0,0.00030255]
[1610124064719,0.13632608,41448.0,41430.0,0.00030258]
[1610124064919,0.13632608,41448.0,41447.0,0.00030258]
[1610124065118,0.13632608,41448.0,41429.0,3.3264]
[1610124065119,0.13632608,41448.0,41431.0,0.00030258]
[1610124065520,0.13632608,41448.0,41430.0,0.00030258]
[1610124065722,0.10376,41463.0,41432.0,0.0003026]
[1610124065922,0.10376,41463.0,41431.0,0.0003026]
[1610124066324,1.60376,41463.0,41433.0,0.0003026]
[1610124066523,1.60376,41463.0,41429.0,3.3264]
[1610124066524,1.60376,41463.0,41432.0,0.0003026]
[1610124066723,1.60376,41463.0,41429.0,3.3264]
[1610124066724,1.60376,41463.0,41434.0,0.0003026]
[1610124067225,0.10376,41463.0,41435.0,0.0003026]
[1610124067626,1.60376,41463.0,41434.0,0.0003026]
[1610124067825,0.13632608,41435.0,41429.0,3.3264]
[1610124068028,0.13632608,41435.0,41430.0,0.00030295]
[1610124068431,0.13632608,41435.0,41429.0,0.00030299]
[1610124068727,0.13632608,41435.0,41431.0,0.00030299]
[1610124069025,0.13632608,41435.0,41430.0,0.00030299]
[1610124069233,0.13632608,41435.0,41432.0,0.00030299]
[1610124069430,0.13632608,41435.0,41431.0,0.00030299]
[1610124069727,0.13632608,41435.0,41429.0,0.00030301]
[1610124069928,0.13632608,41435.0,41432.0,0.00030301]
[1610124070134,0.13632608,41435.0,41430.0,0.00030303]
[1610124070528,0.13632608,41435.0,41429.0,0.00030303]
[1610124070730,0.13632608,41435.0,41431.0,0.00030305]
[1610124070930,0.13632608,41435.0,41430.0,0.00030305]
[1610124071331,0.13632608,41435.0,41432.0,0.00030307]
[1610124071532,0.13632608,41435.0,41431.0,0.00030307]
[1610124071734,1.5,41434.0,41433.0,0.00030307]
[1610124072035,1.5,41434.0,41428.0,0.0978]
[1610124072036,1.5,41434.0,41432.0,0.00030307]
[1610124072234,1.5,41434.0,41433.0,0.00030309]
[1610124072934,1.5,41434.0,41433.0,0.0003031]
[1610124073132,1.5,41434.0,41429.0,0.0003031]
[1610124073333,0.13632608,41435.0,41433.0,0.0003031]
[1610124073532,0.13632608,41435.0,41430.0,0.0003031]
[1610124073934,0.25640608,41435.0,41434.0,0.0003031]
[1610124074136,0.25640608,41435.0,41398.0,0.05907918]
[1610124074137,0.25640608,41435.0,41431.0,0.00030312]
[1610124074335,0.25640608,41435.0,41434.0,0.00030312]
[1610124074637,1.75640608,41435.0,41432.0,0.00030312]
[1610124075036,1.75640608,41435.0,41369.0,2.13492969]
[1610124075037,1.75640608,41435.0,41434.0,0.00030326]
[1610124075236,5.31580608,41435.0,41433.0,0.00030332]
[1610124075435,5.31580608,41435.0,41434.0,0.00030332]
[1610124075637,5.31580608,41435.0,41401.0,0.095]
[1610124075837,0.13632608,41402.0,41401.0,0.095]
[1610124076237,0.13632608,41402.0,41401.0,0.00030339]
[1610124076738,0.13632608,41402.0,41388.0,0.00030339]
[1610124077137,0.13632608,41402.0,41401.0,0.00030339]
[1610124077338,0.13632608,41402.0,41367.0,2.9208]
[1610124077339,0.13632608,41402.0,41389.0,0.00030339]
[1610124077637,0.13632608,41402.0,41401.0,0.00030341]
[1610124077835,0.13632608,41402.0,41390.0,0.00030341]
[1610124078037,0.13632608,41402.0,41401.0,0.00030341]
[1610124078436,0.13632608,41402.0,41388.0,0.00030345]
[1610124078639,0.13632608,41402.0,41371.0,0.10546]
[1610124078939,0.13632608,41402.0,41389.0,0.00030344]
[1610124079145,0.13632608,41402.0,41388.0,0.00030344]
[1610124079340,0.13632608,41402.0,41390.0,0.00030342]
[1610124079738,0.13632608,41390.0,41389.0,0.00030342]
[1610124079940,0.13632608,41390.0,41382.0,0.08439]
[1610124080238,0.13632608,41390.0,41389.0,0.00030342]
[1610124080438,0.13632608,41390.0,41388.0,0.00030342]
[1610124080640,0.13632608,41390.0,41389.0,0.00030342]
[1610124080939,0.13632608,41390.0,41389.0,0.00030341]
[1610124081339,0.13632608,41390.0,41382.0,0.08439]
[1610124081340,0.13632608,41390.0,41388.0,0.00030339]
[1610124081541,0.13632608,41390.0,41389.0,0.00030339]
[1610124081840,0.13632608,41390.0,41388.0,0.00030339]
[1610124082141,0.13632608,41390.0,41389.0,0.00030339]
[1610124082546,0.13632608,41390.0,41388.0,0.00030341]
[1610124082944,0.13632608,41390.0,41389.0,0.00030339]
[1610124083443,0.13632608,41390.0,41388.0,0.00030339]
[1610124083644,0.13632608,41390.0,41389.0,0.00030339]
[1610124084144,0.13632608,41390.0,41388.0,0.00030339]
[1610124084546,0.13632608,41390.0,41389.0,0.00030339]
[1610124084946,0.13632608,41390.0,41389.0,0.00030338]
[1610124085345,0.13632608,41390.0,41388.0,0.00030338]
[1610124085645,0.13632608,41390.0,41389.0,0.00030336]
[1610124086146,0.13632608,41390.0,41388.0,0.00030336]
[1610124086346,0.13632608,41390.0,41389.0,0.00030336]
[1610124086747,0.13632608,41390.0,41388.0,0.00030334]
[1610124087246,0.13632608,41390.0,41389.0,0.00030334]
[1610124087649,0.13632608,41390.0,41388.0,0.00030334]
[1610124087847,0.13632608,41390.0,41389.0,0.00030334]
[1610124088450,0.13632608,41390.0,41388.0,0.00030334]
[1610124088648,0.13632608,41390.0,41389.0,0.00030334]
[1610124089248,0.13632608,41390.0,41388.0,0.00030334]
[1610124089449,0.13632608,41390.0,41389.0,0.00030334]
[1610124089849,0.13632608,41390.0,41389.0,0.13662942]
[1610124090048,0.13632608,41390.0,41389.0,0.13632608]
[1610124090249,0.13632608,41390.0,41389.0,0.13662942]
[1610124090548,0.13632608,41390.0,41389.0,0.00030334]
[1610124091050,0.13632608,41390.0,41388.0,0.00030334]
[1610124091248,0.13632608,41390.0,41389.0,0.00030338]
[1610124091749,0.13632608,41390.0,41388.0,0.00030338]
[1610124092153,0.13632608,41390.0,41371.0,0.10546]
[1610124095955,0.13632608,41390.0,41349.0,0.0002]
[1610124101557,0.0719,41389.0,41349.0,0.0002]
[1610124102257,0.13632608,41390.0,41387.0,0.2518]
[1610124102460,0.13632608,41390.0,41387.0,0.1829]
[1610124102659,0.13632608,41390.0,41387.0,0.0903]
[1610124103659,1.63632608,41390.0,41387.0,0.0903]
[1610124104562,0.0727,41389.0,41387.0,0.0846]
[1610124104870,3.3411,41367.0,41324.0,0.11093]
[1610124105061,3.42255,41367.0,41324.0,0.11093]
[1610124105261,0.08145,41367.0,41325.0,0.02990313]
[1610124105560,3.3697,41356.0,41325.0,0.02990313]
[1610124105781,3.49402,41356.0,41325.0,0.02990313]
[1610124105960,0.13632608,41326.0,41325.0,0.02990313]
[1610124106160,0.13632608,41326.0,41311.0,0.11743]
[1610124106161,0.13632608,41326.0,41312.0,0.02990664]
[1610124106469,0.13632608,41326.0,41325.0,0.02990714]
[1610124106669,0.13632608,41326.0,41313.0,0.00030285]
[1610124106867,0.13632608,41326.0,41325.0,0.00030285]
[1610124107062,0.13632608,41326.0,41314.0,0.00030285]
[1610124107464,0.13632608,41326.0,41325.0,0.00030288]
[1610124107761,0.13632608,41326.0,41311.0,0.11743]
[1610124107762,0.13632608,41326.0,41315.0,0.00030288]
[1610124107961,0.13632608,41316.0,41312.0,0.00030288]
[1610124108165,0.13632608,41316.0,41311.0,0.11743]
[1610124108561,0.13632608,41316.0,41313.0,0.00030287]
[1610124108762,0.13632608,41316.0,41312.0,0.00030289]
[1610124108962,0.13632608,41316.0,41311.0,0.11743]
[1610124109164,0.13632608,41316.0,41313.0,0.00030289]
[1610124109568,0.13632608,41316.0,41312.0,0.00030291]
[1610124109764,0.13632608,41316.0,41314.0,0.00030293]
[1610124109964,0.13632608,41316.0,41313.0,0.00030293]
[1610124110265,0.13632608,41316.0,41299.0,0.12483]
[1610124110665,0.13632608,41316.0,41299.0,0.57143]
[1610124110967,0.13632608,41316.0,41300.0,0.00030293]
[1610124111966,0.13632608,41301.0,41300.0,0.00030293]
[1610124112368,3.7253,41338.0,41300.0,0.00030293]
[1610124113369,0.09561,41342.0,41300.0,0.00030293]
[1610124113770,0.09561,41342.0,41306.0,3.6868]
[1610124113972,0.09561,41342.0,41307.0,0.13632608]
[1610124114170,0.09561,41342.0,41307.0,0.13662896]
[1610124114471,0.09561,41342.0,41307.0,0.00030288]
[1610124114972,0.09561,41342.0,41306.0,3.6868]
[1610124115974,0.13632608,41307.0,41306.0,3.6868]
[1610124119878,0.13632608,41307.0,41306.0,3.68710293]
[1610124121781,0.11886,41331.0,41306.0,0.00030293]
[1610124121982,0.09561,41342.0,41330.0,0.13632608]
[1610124122184,0.00733354,41395.0,41330.0,0.25780608]
[1610124122381,1.77644469,41450.0,41330.0,0.25780608]
[1610124122382,0.00733705,41401.0,41354.0,3.6378]
[1610124122583,0.02185947,41408.0,41354.0,3.6378]
[1610124122784,0.02185947,41408.0,41354.0,3.73757]
[1610124123083,0.71920542,41419.0,41354.0,3.73757]
[1610124123084,0.00029592,41407.0,41354.0,3.73757]
[1610124123282,0.10298,41407.0,41354.0,3.73757]
[1610124123485,0.10298,41407.0,41355.0,0.00030263]
[1610124123888,0.10298,41407.0,41377.0,2.7802]
[1610124124086,0.13632608,41394.0,41386.0,0.13632608]
[1610124124286,0.08433,41423.0,41386.0,0.13632608]
[1610124124486,0.08433,41423.0,41386.0,0.21709608]
[1610124125285,0.08433,41423.0,41387.0,0.00030241]
[1610124125586,0.0073418,41468.0,41386.0,0.21709608]
[1610124125885,0.51838865,41471.0,41386.0,0.21709608]
[1610124125886,0.00734162,41470.0,41386.0,0.21709608]
[1610124126084,0.13632608,41427.0,41415.0,0.13632608]
[1610124126790,0.13632608,41427.0,41407.0,3.667]
[1610124127489,0.13632608,41427.0,41394.0,2.9589]
[1610124127892,0.13632608,41427.0,41395.0,0.00030232]
[1610124128092,0.13632608,41421.0,41408.0,0.13632608]
[1610124128491,0.13632608,41421.0,41395.0,0.09376]
[1610124129996,0.13632608,41396.0,41395.0,0.09376]
[1610124130210,0.13632608,41396.0,41377.0,0.0946]
[1610124130395,0.13632608,41396.0,41350.0,3.5091]
[1610124130797,0.13632608,41396.0,41355.0,0.00030298]
[1610124130997,0.13632608,41396.0,41355.0,0.08650298]
[1610124131197,0.13632608,41396.0,41355.0,0.0862]
[1610124131702,0.13632608,41396.0,41361.0,2.7511]
[1610124131999,0.13632608,41387.0,41381.0,0.13632608]
[1610124132198,0.13632608,41387.0,41382.0,0.4394]
[1610124132398,0.13632608,41387.0,41382.0,0.52522]
[1610124135101,0.13632608,41387.0,41382.0,0.08582]
[1610124135401,0.13632608,41387.0,41373.0,0.1062]
[1610124136201,0.13632608,41374.0,41373.0,0.1062]
[1610124139405,0.13632608,41374.0,41356.0,0.13632608]
[1610124139804,0.13632608,41374.0,41357.0,0.00030294]
[1610124140005,0.13632608,41358.0,41357.0,0.00030294]
[1610124140407,0.13632608,41358.0,41355.0,0.0862]
[1610124140609,0.13632608,41358.0,41331.0,2.8092]
[1610124141109,0.13632608,41358.0,41332.0,0.000303]
[1610124141509,0.13632608,41358.0,41332.0,0.083413]
[1610124141910,0.13632608,41358.0,41333.0,0.00030304]
[1610124142109,0.11031,41377.0,41334.0,0.13632608]
[1610124142610,0.11031,41377.0,41335.0,0.00030304]
[1610124143310,0.11031,41377.0,41352.0,2.9661]
[1610124143512,0.12463,41394.0,41352.0,3.04667]
[1610124143812,0.12645,41424.0,41353.0,0.00030292]
[1610124144012,0.00738691,41446.0,41388.0,0.13632608]
[1610124144415,0.0220152,41449.0,41388.0,3.92912608]
[1610124144717,0.00738611,41451.0,41388.0,3.92912608]
[1610124145110,0.01462739,41452.0,41388.0,3.92912608]
[1610124145111,0.00738515,41452.0,41388.0,3.92912608]
[1610124145411,0.00738448,41459.0,41389.0,0.00030277]
[1610124145710,0.00738384,41465.0,41389.0,0.00030277]
[1610124145910,0.00738339,41469.0,41389.0,0.00030277]
[1610124146110,0.00738339,41469.0,41420.0,0.13632608]
[1610124146311,0.02200369,41472.0,41410.0,0.105]
[1610124146510,0.0073802,41475.0,41410.0,0.105]
[1610124146711,0.00738022,41473.0,41410.0,0.105]
[1610124147311,2.90101574,41474.0,41410.0,0.105]
[1610124147312,2.8864,41474.0,41410.0,0.105]
[1610124148011,0.13632608,41411.0,41410.0,0.105]
[1610124148813,2.8864,41474.0,41410.0,0.105]
[1610124149414,2.8864,41474.0,41411.0,0.00030266]
[1610124149617,0.00029553,41473.0,41411.0,0.00030266]
[1610124149815,0.12137553,41473.0,41411.0,0.00030266]
[1610124150015,0.13632608,41412.0,41411.0,0.00030266]
[1610124150218,0.13632608,41412.0,41411.0,3.55690266]
[1610124151015,0.0822,41439.0,41411.0,0.00030266]
[1610124151715,0.29915093,41433.0,41411.0,0.00030266]
[1610124152119,0.13632608,41412.0,41411.0,0.00030266]
[1610124152416,0.13632608,41412.0,41411.0,0.00030269]
[1610124152816,0.13632608,41412.0,41396.0,0.00030271]
[1610124153016,0.13632608,41412.0,41411.0,0.00030275]
[1610124153215,0.13632608,41412.0,41397.0,0.00030275]
[1610124153616,0.13632608,41412.0,41411.0,0.00030275]
[1610124153916,0.13632608,41412.0,41398.0,0.00030275]
[1610124154217,0.08175,41418.0,41411.0,0.00030275]
[1610124154517,0.08175,41418.0,41389.0,0.00030275]
[1610124154915,0.08175,41418.0,41400.0,0.00030278]
[1610124155117,0.08175,41418.0,41390.0,0.00030278]
[1610124155318,0.08175,41418.0,41389.0,0.0003028]
[1610124155617,0.08175,41418.0,41391.0,0.0003028]
[1610124155817,0.08175,41418.0,41390.0,0.0003028]
[1610124156120,0.13632608,41391.0,41389.0,0.0003028]
[1610124156520,0.08175,41418.0,41390.0,0.0003028]
[1610124157017,0.08175,41418.0,41394.0,3.0726]
[1610124157219,0.29915093,41433.0,41394.0,3.0726]
[1610124157417,0.29915093,41433.0,41395.0,0.00029607]
[1610124158020,0.29915093,41433.0,41405.0,0.13632608]
[1610124158222,0.29915093,41433.0,41405.0,0.26372608]
[1610124158621,0.29915093,41433.0,41406.0,0.00029605]
[1610124160121,0.13632608,41407.0,41406.0,0.00029605]
[1610124164124,0.13632608,41407.0,41389.0,0.13662213]
[1610124164327,0.13632608,41407.0,41406.0,0.00029605]
[1610124164525,0.13632608,41407.0,41390.0,0.00029607]
[1610124164929,0.13632608,41407.0,41406.0,0.0002961]
[1610124165128,0.13632608,41407.0,41391.0,0.00029612]
[1610124165329,0.13632608,41407.0,41406.0,0.00029612]
[1610124166228,0.13632608,41407.0,41393.0,0.00029614]
[1610124166427,0.13632608,41407.0,41387.0,3.6277]
[1610124166428,0.13632608,41407.0,41406.0,0.00029614]
[1610124166630,0.13632608,41407.0,41394.0,0.00029614]
[1610124167030,0.13632608,41407.0,41406.0,0.00029614]
[1610124167230,0.13632608,41407.0,41395.0,0.00029614]
[1610124167433,0.13632608,41407.0,41387.0,3.6277]
[1610124167434,0.13632608,41407.0,41406.0,0.00029614]
[1610124167832,0.13632608,41407.0,41396.0,0.00029614]
[1610124168033,0.13632608,41407.0,41406.0,0.00029614]
[1610124168333,0.08398,41409.0,41397.0,0.00029614]
[1610124168534,0.08398,41409.0,41407.0,0.00029626]
[1610124168932,0.08398,41409.0,41398.0,0.00029626]
[1610124169233,0.08398,41409.0,41367.0,0.02987427]
[1610124169434,0.08398,41409.0,41399.0,0.0002963]
[1610124169633,0.00029579,41408.0,41368.0,0.02987565]
[1610124169833,3.595,41420.0,41367.0,0.02987503]
[1610124170036,0.10069,41408.0,41367.0,0.02987503]
[1610124170335,0.10069,41408.0,41369.0,0.02987564]
[1610124170534,0.10069,41408.0,41368.0,0.02987567]
[1610124170734,0.10069,41408.0,41367.0,0.02987578]
[1610124170735,0.00029579,41407.0,41367.0,0.02987578]
[1610124170934,0.00029579,41407.0,41369.0,0.02987843]
[1610124171134,0.00029579,41407.0,41368.0,0.00029633]
[1610124171535,0.00029579,41407.0,41370.0,0.00029633]
[1610124171833,0.51639,41408.0,41369.0,0.00029636]
[1610124172035,0.51639,41408.0,41371.0,0.00029636]
[1610124172235,0.51639,41408.0,41366.0,4.0446]
[1610124172236,0.13632608,41372.0,41370.0,0.00029636]
[1610124172636,0.13632608,41372.0,41371.0,0.00029636]
[1610124173036,0.13632608,41372.0,41367.0,0.00029636]
[1610124173239,0.13632608,41372.0,41371.0,0.00029636]
[1610124173538,0.13632608,41372.0,41368.0,0.00029634]
[1610124173939,0.13632608,41372.0,41371.0,0.00029634]
[1610124174139,0.13632608,41372.0,41350.0,3.0459]
[1610124174140,0.13632608,41372.0,41369.0,0.00029634]
[1610124174339,0.13632608,41372.0,41371.0,0.00029636]
[1610124174747,0.13632608,41372.0,41370.0,0.00029636]
[1610124174954,0.13632608,41372.0,41353.0,0.00029636]
[1610124175149,0.13632608,41372.0,41371.0,0.00029634]
[1610124175546,0.13632608,41372.0,41363.0,0.08808]
[1610124175742,0.13632608,41372.0,41364.0,0.00029629]
[1610124176243,0.13632608,41365.0,41364.0,0.00029629]
[1610124176446,0.13632608,41365.0,41364.0,0.02987202]
[1610124178146,0.13632608,41365.0,41364.0,0.00029629]
[1610124179148,0.13632608,41365.0,41364.0,0.02987733]
[1610124179447,0.08201,41388.0,41364.0,3.69557733]
[1610124179650,0.2883,41406.0,41364.0,3.69557733]
[1610124179949,0.2883,41406.0,41365.0,0.02987101]
[1610124180150,0.13632608,41377.0,41373.0,0.13632608]
[1610124180748,0.13632608,41377.0,41374.0,0.02986589]
[1610124180951,0.13632608,41377.0,41374.0,0.11323589]
[1610124181351,0.13632608,41377.0,41375.0,0.02986555]
[1610124182052,0.08854,41421.0,41375.0,0.02986555]
[1610124182251,0.13632608,41402.0,41401.0,0.13632608]
[1610124182550,0.08854,41421.0,41401.0,0.13632608]
[1610124182752,0.2738,41429.0,41401.0,4.0679622]
[1610124183250,0.2738,41429.0,41402.0,0.00029609]
[1610124184150,0.13632608,41403.0,41402.0,0.00029609]
[1610124185870,0.2738,41429.0,41402.0,0.00029609]
[1610124186153,0.2738,41429.0,41402.0,0.13446375]
[1610124186359,0.2738,41429.0,41405.0,0.13632608]
[1610124186858,0.2738,41429.0,41406.0,0.02985168]
[1610124188460,0.13632608,41407.0,41406.0,0.02985168]
[1610124188654,0.13632608,41407.0,41403.0,0.02985051]
[1610124188854,0.13632608,41407.0,41406.0,0.02985071]
[1610124189155,0.13632608,41407.0,41404.0,0.02985071]
[1610124189358,0.13632608,41407.0,41406.0,0.02985109]
[1610124189756,0.13632608,41407.0,41405.0,0.02985036]
[1610124190056,0.13632608,41407.0,41406.0,0.02984931]
[1610124190256,0.13632608,41407.0,41406.0,0.16617539]
[1610124190457,0.13632608,41407.0,41406.0,0.13632608]
[1610124190656,0.13632608,41407.0,41406.0,0.16617419]
[1610124191358,0.2979,41462.0,41406.0,0.16617419]
[1610124191556,0.2979,41462.0,41415.0,3.3065]
[1610124191756,0.2979,41462.0,41415.0,3.39827]
[1610124192158,0.2979,41462.0,41416.0,0.02984833]
[1610124192359,0.13632608,41424.0,41421.0,0.13632608]
[1610124192759,0.08776,41448.0,41422.0,0.000296]
[1610124192961,0.08776,41448.0,41422.0,0.02984244]
[1610124193360,0.08776,41448.0,41416.0,0.02984275]
[1610124193559,0.08776,41448.0,41423.0,0.000296]
[1610124193959,0.08776,41448.0,41416.0,0.00029602]
[1610124194159,0.08776,41448.0,41424.0,0.00029602]
[1610124194359,0.13632608,41425.0,41417.0,0.1366221]
[1610124194760,0.13632608,41425.0,41418.0,0.00029602]
[1610124195160,0.13632608,41425.0,41416.0,0.00029602]
[1610124195562,0.13632608,41425.0,41419.0,0.00029602]
[1610124195761,0.13632608,41425.0,41415.0,0.09177]
[1610124195762,0.13632608,41425.0,41417.0,0.00029602]
[1610124195962,0.13632608,41425.0,41420.0,0.00029604]
[1610124196365,0.13632608,41425.0,41418.0,0.00029604]
[1610124196565,0.13632608,41425.0,41421.0,0.00029607]
[1610124196763,0.13632608,41425.0,41419.0,0.00029607]